bitfinex-derivatives/quotes_BTCF0:USTF0_20250501
["timestamp","ask_amount","ask_price","bid_price","bid_amount"]
[1746093539649,0.2092371,95571.0,95564.0,0.1907]
[1746093539948,0.9961571,95571.0,95570.0,0.49901467]
[1746093540151,1.1181571,95571.0,95570.0,0.49901467]
[1746093540351,1.1181571,95571.0,95570.0,0.70825387]
[1746093540651,1.4998571,95571.0,95570.0,0.49901467]
[1746093540955,1.4998971,95571.0,95570.0,0.49901467]
[1746093541151,1.3778971,95571.0,95570.0,0.49232946]
[1746093541848,0.0523121,95566.0,95555.0,0.33104651]
[1746093542053,0.5700699,95556.0,95555.0,0.22104651]
[1746093542361,0.6353899,95556.0,95555.0,0.43031861]
[1746093542738,0.6353899,95556.0,95555.0,0.22104651]
[1746093542947,1.0168899,95556.0,95555.0,0.22104651]
[1746093543555,1.0168899,95556.0,95555.0,0.22504651]
[1746093543556,1.0178899,95556.0,95555.0,0.22504651]
[1746093544655,1.0178899,95556.0,95555.0,0.23104651]
[1746093545151,1.0178899,95556.0,95555.0,0.44031861]
[1746093545352,1.0178899,95556.0,95555.0,0.44232284]
[1746093545658,1.0189299,95556.0,95555.0,0.44732284]
[1746093545858,1.0188899,95556.0,95555.0,0.44732284]
[1746093546158,1.0189299,95556.0,95555.0,0.44732284]
[1746093546742,0.74434,95556.0,95555.0,0.44732284]
[1746093546950,0.42816,95556.0,95555.0,0.44732284]
[1746093547156,0.36284,95556.0,95555.0,0.56932284]
[1746093547451,0.3628,95556.0,95555.0,0.56932284]
[1746093547653,0.36284,95556.0,95555.0,0.67397484]
[1746093547850,0.3628,95556.0,95555.0,0.67397484]
[1746093548051,0.36284,95556.0,95555.0,0.67397484]
[1746093548452,0.3628,95556.0,95555.0,0.67397484]
[1746093548648,0.36284,95556.0,95555.0,0.56932284]
[1746093548955,0.5720699,95556.0,95555.0,0.56932284]
[1746093549160,0.5721099,95556.0,95555.0,0.56932284]
[1746093549359,0.7705099,95556.0,95555.0,0.56932284]
[1746093549551,0.56124,95556.0,95555.0,0.56932284]
[1746093549751,0.36284,95556.0,95555.0,0.56932284]
[1746093549956,0.5720699,95556.0,95555.0,0.56932284]
[1746093550261,0.36284,95556.0,95555.0,0.92397484]
[1746093550963,0.002,95556.0,95555.0,0.92397484]
[1746093551151,0.00204,95556.0,95555.0,1.30267484]
[1746093551363,5.401e-05,95567.0,95555.0,1.30267484]
[1746093551364,5.401e-05,95567.0,95566.0,0.209248]
[1746093551553,5.401e-05,95567.0,95566.0,0.573888]
[1746093551957,0.3608,95571.0,95570.0,0.2092392]
[1746093552155,0.06532,95576.0,95575.0,0.2092283]
[1746093552351,0.06532,95576.0,95575.0,0.4492283]
[1746093552352,0.2745461,95576.0,95575.0,0.4492283]
[1746093552552,0.06536,95576.0,95575.0,0.4492283]
[1746093552957,0.2745861,95576.0,95575.0,0.4492283]
[1746093553260,0.2745861,95576.0,95575.0,0.5712283]
[1746093553858,0.2755861,95576.0,95575.0,0.5712283]
[1746093554452,0.2755861,95576.0,95575.0,0.5732283]
[1746093555051,0.2755861,95576.0,95575.0,0.9578283]
[1746093555563,0.00104,95576.0,95575.0,0.9578283]
[1746093556062,0.00104,95576.0,95575.0,1.0624563]
[1746093556763,0.36184,95576.0,95575.0,1.0624563]
[1746093556960,0.36184,95576.0,95575.0,0.9578283]
[1746093558558,0.5710661,95576.0,95575.0,0.9578283]
[1746093559771,0.7608661,95576.0,95575.0,0.9578283]
[1746093562157,0.7608661,95576.0,95575.0,0.8358283]
[1746093567661,0.55164,95576.0,95575.0,0.8358283]
[1746093567871,0.5710661,95576.0,95575.0,0.8358283]
[1746093568174,0.36184,95576.0,95575.0,0.9578283]
[1746093568367,0.5710661,95576.0,95575.0,0.9578283]
[1746093568759,0.36184,95576.0,95575.0,0.9578283]
[1746093568968,0.5710261,95576.0,95575.0,0.9578283]
[1746093569169,0.7615661,95576.0,95575.0,0.9578283]
[1746093569670,0.55234,95576.0,95575.0,0.9578283]
[1746093570573,0.7615661,95576.0,95575.0,0.9578283]
[1746093572971,0.5523,95576.0,95575.0,0.9578283]
[1746093573172,0.55234,95576.0,95575.0,0.9578283]
[1746093573676,0.7615661,95576.0,95575.0,0.9578283]
[1746093575465,0.7615661,95576.0,95575.0,0.7591283]
[1746093577079,0.7615661,95576.0,95575.0,0.6371283]
[1746093577669,0.55234,95576.0,95575.0,0.6371283]
[1746093577869,0.55234,95576.0,95575.0,0.8226283]
[1746093578178,0.7615661,95576.0,95575.0,0.8226283]
[1746093579876,0.7615661,95576.0,95575.0,0.6371283]
[1746093580179,0.7615661,95576.0,95575.0,0.4512283]
[1746093588578,0.7615661,95576.0,95575.0,0.242]
[1746093588777,0.7615661,95576.0,95575.0,0.4512283]
[1746093590379,0.7615661,95576.0,95575.0,0.242]
[1746093590583,0.7615661,95576.0,95575.0,0.4512283]
[1746093591183,0.8835661,95576.0,95575.0,0.4512283]
[1746093592485,0.8835661,95576.0,95575.0,0.242]
[1746093593182,1.23819411,95576.0,95575.0,0.1746585]
[1746093593682,1.30343411,95576.0,95575.0,0.1746585]
[1746093594281,1.30343411,95576.0,95575.0,0.0824404]
[1746093594675,0.2092589,95561.0,95560.0,0.21]
[1746093594880,0.2092699,95556.0,95555.0,0.00905074]
[1746093595083,0.5700699,95556.0,95555.0,0.48832284]
[1746093595281,0.5700699,95556.0,95555.0,0.27905074]
[1746093595481,0.5700699,95556.0,95555.0,0.48832284]
[1746093595781,0.7612699,95556.0,95555.0,0.48832284]
[1746093596189,0.8832699,95556.0,95555.0,0.27905074]
[1746093596483,0.8852699,95556.0,95555.0,0.29005074]
[1746093599782,0.9505099,95556.0,95555.0,0.29005074]
[1746093599978,0.9505499,95556.0,95555.0,0.29005074]
[1746093600285,0.82833144,95556.0,95555.0,0.29005074]
[1746093600793,0.76309144,95556.0,95555.0,0.29005074]
[1746093601086,0.82833144,95556.0,95555.0,0.68732284]
[1746093601394,0.56389144,95556.0,95555.0,0.86912284]
[1746093601974,0.56385144,95556.0,95555.0,0.86912284]
[1746093602177,0.36284,95556.0,95555.0,0.99112284]
[1746093603282,0.00204,95556.0,95555.0,0.99112284]
[1746093603484,0.0798818,95565.0,95558.0,0.0523158]
[1746093603689,0.10586225,95573.0,95572.0,0.2092349]
[1746093603879,0.10586225,95573.0,95572.0,0.4492349]
[1746093604188,0.10590225,95573.0,95572.0,0.5712349]
[1746093604492,0.51939715,95592.0,95591.0,0.2091933]
[1746093604687,0.51939715,95592.0,95591.0,0.4491933]
[1746093604892,0.42604,95604.0,95597.0,0.052295]
[1746093604893,0.3608,95604.0,95597.0,0.052295]
[1746093605080,0.3608,95604.0,95603.0,0.209167]
[1746093605282,0.3608,95604.0,95603.0,0.489167]
[1746093605680,5.401e-05,95609.0,95604.0,0.1824348]
[1746093605889,0.1966,95615.0,95604.0,1.0242348]
[1746093606089,0.00154,95605.0,95604.0,1.1462348]
[1746093606393,0.06524,95615.0,95611.0,0.2091495]
[1746093606594,0.06524,95615.0,95611.0,0.4591495]
[1746093606781,0.06524,95615.0,95611.0,0.56373749]
[1746093607089,0.59579471,95628.0,95615.0,0.2091408]
[1746093607090,0.06524,95625.0,95615.0,0.2091408]
[1746093607293,0.0015,95640.0,95615.0,0.6958]
[1746093607480,0.001,95646.0,95645.0,0.2090752]
[1746093607682,0.570873,95646.0,95645.0,0.29]
[1746093607994,0.001,95646.0,95645.0,0.4990752]
[1746093608190,0.00104,95646.0,95645.0,0.4990752]
[1746093608389,5.401e-05,95665.0,95645.0,0.4990752]
[1746093608390,0.28712665,95657.0,95656.0,0.2090511]
[1746093608586,0.35236665,95657.0,95656.0,0.4890511]
[1746093608892,0.28712665,95657.0,95656.0,0.4890511]
[1746093609193,0.28716665,95657.0,95656.0,0.4890511]
[1746093609391,0.28716665,95657.0,95656.0,0.8679511]
[1746093609789,0.30416665,95657.0,95656.0,0.8699511]
[1746093610284,0.49526665,95657.0,95656.0,0.8699511]
[1746093611401,0.30416665,95657.0,95656.0,0.8699511]
[1746093611694,0.30416665,95657.0,95656.0,0.87780946]
[1746093612400,0.01704,95657.0,95656.0,0.87780946]
[1746093613188,0.0652,95662.0,95661.0,0.2090402]
[1746093613389,5.401e-05,95667.0,95666.0,0.2090293]
[1746093613584,0.0015,95675.0,95674.0,0.2090118]
[1746093613790,0.0015,95675.0,95674.0,0.4890118]
[1746093614190,0.12354,95675.0,95674.0,0.4890118]
[1746093614389,0.1235,95675.0,95674.0,0.8536118]
[1746093614689,0.12354,95675.0,95674.0,0.95813179]
[1746093614891,0.12354,95675.0,95674.0,1.31893179]
[1746093615199,0.1235,95675.0,95674.0,1.31893179]
[1746093615786,5.401e-05,95687.0,95686.0,0.2089856]
[1746093615986,0.0662,95706.0,95686.0,0.6565]
[1746093616194,0.12269994,95700.0,95694.0,0.3608]
[1746093616397,0.12269994,95700.0,95699.0,0.2089572]
[1746093616586,0.001,95706.0,95705.0,0.2089441]
[1746093616786,0.06643129,95706.0,95705.0,0.4489441]
[1746093616992,0.001,95706.0,95705.0,0.4489441]
[1746093617193,0.12304,95706.0,95705.0,0.4489441]
[1746093617487,0.123,95706.0,95705.0,0.8254441]
[1746093617694,0.12304,95706.0,95705.0,0.8254441]
[1746093617995,0.123,95706.0,95705.0,0.8254441]
[1746093618195,0.12304,95706.0,95705.0,0.8254441]
[1746093618689,0.13004,95706.0,95705.0,0.8254441]
[1746093619089,0.13504,95706.0,95705.0,0.8254441]
[1746093620094,0.13504,95706.0,95705.0,0.83345506]
[1746093620397,0.13504,95706.0,95705.0,0.93794306]
[1746093620996,0.0652,95717.0,95709.0,0.0522335]
[1746093621197,0.2088993,95726.0,95724.0,0.2089026]
[1746093621395,0.208897,95727.0,95724.0,0.4689026]
[1746093621599,7.291e-05,95727.0,95724.0,0.26]
[1746093621802,0.7089004,95725.0,95724.0,0.4689026]
[1746093622098,0.7089004,95725.0,95715.0,0.0522305]
[1746093622099,0.2089244,95714.0,95703.0,0.3608]
[1746093622301,0.2089244,95714.0,95713.0,0.24]
[1746093622998,0.2089244,95714.0,95713.0,0.4489266]
[1746093623199,0.3309244,95714.0,95713.0,0.4489266]
[1746093624102,0.125,95714.0,95713.0,0.4489266]
[1746093624491,0.13,95714.0,95713.0,0.4489266]
[1746093624695,0.13004,95714.0,95713.0,0.6358266]
[1746093624896,0.13,95714.0,95713.0,0.6358266]
[1746093625194,0.13004,95714.0,95713.0,0.6358266]
[1746093625596,0.3389644,95714.0,95713.0,0.6358266]
[1746093625800,0.3389644,95714.0,95713.0,0.24]
[1746093626100,0.2089419,95706.0,95705.0,0.00801096]
[1746093626300,0.208955,95700.0,95699.0,0.2089565]
[1746093626602,0.208955,95700.0,95699.0,0.26]
[1746093626796,0.274115,95700.0,95699.0,0.26]
[1746093626997,0.739407,95700.0,95699.0,0.26]
[1746093627197,0.2089681,95694.0,95693.0,0.0077426]
[1746093627394,0.2090074,95676.0,95675.0,0.2116225]
[1746093627596,0.2090074,95676.0,95675.0,0.4616225]
[1746093627794,0.2090074,95676.0,95675.0,0.46937607]
[1746093627999,0.2090074,95676.0,95675.0,0.45937607]
[1746093628199,0.3310074,95676.0,95675.0,0.45937607]
[1746093628401,0.3310074,95676.0,95675.0,0.77937607]
[1746093628703,0.3310074,95676.0,95675.0,0.78237607]
[1746093629205,0.4355274,95676.0,95675.0,0.56979877]
[1746093629405,0.4355274,95676.0,95660.0,0.37]
[1746093629406,0.2090402,95661.0,95660.0,0.37]
[1746093629599,0.6350002,95661.0,95660.0,0.8190424]
[1746093629991,0.5698402,95661.0,95660.0,0.8190424]
[1746093630197,0.9446002,95661.0,95660.0,0.8190424]
[1746093631303,0.37476,95661.0,95660.0,0.8190424]
[1746093631499,0.3768,95661.0,95660.0,0.8190424]
[1746093631700,0.5858402,95661.0,95660.0,0.8190424]
[1746093632408,0.5858402,95661.0,95660.0,0.82669394]
[1746093632702,0.5858402,95661.0,95660.0,1.01479394]
[1746093634703,0.5858402,95661.0,95660.0,0.82669394]
[1746093635101,0.3768,95661.0,95660.0,0.82669394]
[1746093635297,0.3768,95661.0,95660.0,1.02129394]
[1746093635504,0.37676,95661.0,95660.0,1.02129394]
[1746093635898,0.3768,95661.0,95660.0,1.02129394]
[1746093636102,0.31164,95661.0,95660.0,1.02129394]
[1746093636907,0.12404,95661.0,95660.0,1.02129394]
[1746093638010,0.124,95661.0,95660.0,1.02129394]
[1746093638209,0.12404,95661.0,95660.0,1.02129394]
[1746093639614,0.3330802,95661.0,95660.0,0.82669394]
[1746093639810,0.3330802,95661.0,95660.0,0.46158593]
[1746093640708,0.5299802,95661.0,95660.0,0.46158593]
[1746093641310,0.5279802,95661.0,95660.0,0.46158593]
[1746093641706,0.5279802,95661.0,95660.0,0.67062833]
[1746093641911,0.5289802,95661.0,95660.0,0.46158593]
[1746093642109,0.5289802,95661.0,95660.0,0.67062833]
[1746093642304,0.5289402,95661.0,95660.0,0.67062833]
[1746093642506,0.5941402,95661.0,95660.0,0.67062833]
[1746093642706,0.5941802,95661.0,95660.0,0.46158593]
[1746093643016,0.5951802,95661.0,95660.0,0.67062833]
[1746093644618,0.5941802,95661.0,95660.0,0.67062833]
[1746093644915,0.5931802,95661.0,95660.0,0.67062833]
[1746093645508,0.5941802,95661.0,95660.0,0.67062833]
[1746093645910,0.5931802,95661.0,95660.0,0.67062833]
[1746093646113,0.5941802,95661.0,95660.0,0.67062833]
[1746093646516,0.5941802,95661.0,95660.0,0.46158593]
[1746093646715,0.5941802,95661.0,95632.0,0.05384399]
[1746093646716,0.2613406,95648.0,95632.0,0.00156839]
[1746093647020,0.3136082,95648.0,95647.0,0.2090703]
[1746093647216,0.3136082,95648.0,95647.0,0.8590703]
[1746093648216,0.4356082,95648.0,95647.0,0.651]
[1746093648914,0.4356082,95648.0,95647.0,0.65]
[1746093649415,0.4356082,95648.0,95647.0,0.651]
[1746093650012,0.7964082,95648.0,95647.0,0.651]
[1746093650717,0.7964082,95648.0,95647.0,0.65]
[1746093651523,0.8616082,95648.0,95647.0,0.65]
[1746093656312,0.8616482,95648.0,95647.0,0.8590708]
[1746093656514,0.48284,95648.0,95647.0,0.8590708]
[1746093656718,0.3963086,95648.0,95647.0,0.8590708]
[1746093656924,0.3972686,95648.0,95647.0,0.8590708]
[1746093657123,0.7581086,95648.0,95647.0,0.65]
[1746093657919,0.7581086,95648.0,95647.0,0.8590708]
[1746093658427,0.54904,95648.0,95647.0,0.8590708]
[1746093658815,0.7580686,95648.0,95647.0,1.0543708]
[1746093659015,0.7581086,95648.0,95647.0,1.0543708]
[1746093659231,0.54904,95648.0,95647.0,1.0543708]
[1746093659428,0.18824,95648.0,95647.0,1.0543708]
[1746093659928,0.1882,95648.0,95647.0,1.0543708]
[1746093660128,0.18824,95648.0,95647.0,1.0543708]
[1746093660331,0.3973086,95648.0,95647.0,1.0543708]
[1746093661337,0.18824,95648.0,95647.0,1.0543708]
[1746093661839,0.3973086,95648.0,95647.0,1.0543708]
[1746093662135,0.5805086,95648.0,95647.0,1.0543708]
[1746093662534,0.37144,95648.0,95647.0,1.0543708]
[1746093662738,0.18824,95648.0,95647.0,1.0543708]
[1746093662930,0.123,95648.0,95647.0,1.0543708]
[1746093663129,0.12304,95648.0,95647.0,1.0543708]
[1746093663429,0.123,95648.0,95647.0,1.0543708]
[1746093663634,0.12304,95648.0,95647.0,1.0543708]
[1746093665945,0.12304,95648.0,95647.0,1.4943708]
[1746093668137,0.12204,95648.0,95647.0,1.5013708]
[1746093668640,0.12204,95648.0,95647.0,1.5003708]
[1746093669329,0.122,95648.0,95647.0,1.5003708]
[1746093669733,0.12204,95648.0,95647.0,1.5003708]
[1746093674847,0.122,95648.0,95647.0,1.5003708]
[1746093675251,0.12204,95648.0,95647.0,1.5003708]
[1746093678962,0.122,95648.0,95647.0,1.5003708]
[1746093679146,0.12204,95648.0,95647.0,1.5003708]
[1746093686967,0.122,95648.0,95647.0,1.5003708]
[1746093687261,0.12204,95648.0,95647.0,1.5003708]
[1746093691362,0.1832,95655.0,95654.0,0.2090555]
[1746093691560,0.1832,95655.0,95654.0,1.2490555]
[1746093691754,5.401e-05,95658.0,95657.0,0.2090489]
[1746093691961,0.181,95661.0,95660.0,0.2090424]
[1746093692153,0.181,95661.0,95660.0,1.2490424]
[1746093692154,0.303,95661.0,95660.0,1.2490424]
[1746093693159,0.303,95661.0,95660.0,1.4479424]
[1746093694258,0.303,95661.0,95660.0,1.4489424]
[1746093697165,0.303,95661.0,95660.0,1.6314424]
[1746093698370,0.30304,95661.0,95660.0,1.6314424]
[1746093699468,5.401e-05,95670.0,95669.0,0.2090227]
[1746093699767,5.401e-05,95670.0,95669.0,1.2290227]
[1746093699966,0.06516,95672.0,95671.0,0.2090183]
[1746093700171,0.06516,95672.0,95671.0,1.1890183]
[1746093701072,0.18716,95672.0,95671.0,1.1890183]
[1746093701274,0.36796,95672.0,95671.0,1.1890183]
[1746093701773,0.36796,95672.0,95671.0,1.20345833]
[1746093702163,0.3028,95672.0,95671.0,1.20345833]
[1746093702364,0.5118162,95672.0,95671.0,0.77444003]
[1746093702574,0.6995162,95672.0,95671.0,0.98345833]
[1746093703077,0.4925,95672.0,95671.0,0.98345833]
[1746093703670,0.7015162,95672.0,95671.0,0.77444003]
[1746093703979,0.8890162,95672.0,95671.0,0.76]
[1746093704269,0.8890162,95672.0,95671.0,0.9690183]
[1746093704669,0.68,95672.0,95671.0,0.9690183]
[1746093705376,0.4943,95672.0,95671.0,1.1690183]
[1746093705578,0.49434,95672.0,95671.0,1.1690183]
[1746093705763,0.49234,95672.0,95671.0,1.1690183]
[1746093706278,0.49034,95672.0,95671.0,1.1710183]
[1746093706467,0.49034,95672.0,95671.0,1.1740183]
[1746093709567,0.6993562,95672.0,95671.0,0.8240183]
[1746093709767,0.6993562,95672.0,95671.0,0.753]
[1746093709975,0.6993562,95672.0,95671.0,0.9640183]
[1746093710175,0.6993562,95672.0,95671.0,0.755]
[1746093710473,0.6993562,95672.0,95671.0,0.9640183]
[1746093710979,0.6993562,95672.0,95671.0,0.9630183]
[1746093711575,0.6993562,95672.0,95671.0,0.9620183]
[1746093712875,0.6993562,95672.0,95671.0,0.9600183]
[1746093713076,0.6993562,95672.0,95671.0,0.9620183]
[1746093714673,0.7644762,95672.0,95671.0,0.9620183]
[1746093718681,0.7644762,95672.0,95671.0,0.753]
[1746093718977,0.7644762,95672.0,95671.0,0.9620183]
[1746093724372,0.7644762,95672.0,95671.0,1.1514183]
[1746093726382,0.7644362,95672.0,95671.0,1.1514183]
[1746093726590,0.7644762,95672.0,95671.0,1.1514183]
[1746093727472,0.7644762,95672.0,95671.0,1.3462183]
[1746093729579,0.7644762,95672.0,95671.0,1.2062183]
[1746093729773,0.7644762,95672.0,95671.0,1.5462183]
[1746093729975,0.7644362,95672.0,95671.0,1.5462183]
[1746093730182,0.7644762,95672.0,95671.0,1.5462183]
[1746093730982,0.6993562,95672.0,95671.0,1.5462183]
[1746093731283,0.7644762,95672.0,95671.0,1.5462183]
[1746093732086,0.7644762,95672.0,95671.0,1.2362183]
[1746093732883,0.7644762,95672.0,95671.0,1.05274415]
[1746093735082,0.7644762,95672.0,95671.0,1.25274415]
[1746093737584,0.6993562,95672.0,95671.0,1.25274415]
[1746093737777,0.7644362,95672.0,95671.0,1.25274415]
[1746093742696,0.49034,95672.0,95671.0,1.25274415]
[1746093742882,0.122,95672.0,95671.0,1.25274415]
[1746093743083,0.12204,95672.0,95671.0,1.25274415]
[1746093744990,0.122,95672.0,95671.0,1.25274415]
[1746093745681,0.12204,95672.0,95671.0,1.25274415]
[1746093745881,0.122,95672.0,95671.0,1.25274415]
[1746093746082,0.12204,95672.0,95671.0,1.25274415]
[1746093747896,0.122,95672.0,95671.0,1.25274415]
[1746093748095,0.12204,95672.0,95671.0,1.25274415]
[1746093748389,5.401e-05,95680.0,95671.0,1.25274415]
[1746093748390,0.13218557,95699.0,95671.0,2.17484984]
[1746093748590,0.13218557,95699.0,95698.0,0.2089594]
[1746093748799,0.1906,95709.0,95699.0,0.0522388]
[1746093749095,0.00013287,95707.0,95705.0,0.2089441]
[1746093749292,0.15816433,95710.0,95709.0,0.2089354]
[1746093749496,0.15816433,95710.0,95709.0,1.2189354]
[1746093749691,0.15816433,95710.0,95709.0,1.22695399]
[1746093749995,1e-08,95710.0,95709.0,1.22695399]
[1746093750212,5.401e-05,95723.0,95722.0,0.208907]
[1746093750383,0.1906,95728.0,95724.0,0.2089026]
[1746093750583,0.1906,95728.0,95724.0,1.0789026]
[1746093750993,0.50004,95725.0,95724.0,1.0789026]
[1746093751182,0.62204,95725.0,95724.0,1.09235189]
[1746093751585,0.8309404,95725.0,95724.0,0.87]
[1746093751783,0.8379404,95725.0,95724.0,0.87]
[1746093752390,1.0342404,95725.0,95724.0,0.87]
[1746093752984,1.0412404,95725.0,95724.0,0.87]
[1746093754293,1.2407404,95725.0,95724.0,0.87]
[1746093754697,1.2407404,95725.0,95724.0,0.86974255]
[1746093757588,1.2407404,95725.0,95724.0,1.07864515]
[1746093757995,1.2407404,95725.0,95724.0,0.86974255]
[1746093758190,1.2407404,95725.0,95724.0,1.07864515]
[1746093759099,1.03184,95725.0,95724.0,1.07864515]
[1746093759495,0.8323,95725.0,95724.0,1.07864515]
[1746093759799,0.8323,95725.0,95724.0,1.25904515]
[1746093759995,0.83234,95725.0,95724.0,1.25904515]
[1746093760999,1.03004,95725.0,95724.0,1.25904515]
[1746093762402,0.83234,95725.0,95724.0,1.25904515]
[1746093763897,1.0412404,95725.0,95724.0,1.25904515]
[1746093764310,0.83234,95725.0,95724.0,1.25904515]
[1746093764905,1.02494,95725.0,95724.0,1.25904515]
[1746093766294,0.636,95725.0,95724.0,1.25904515]
[1746093766698,0.63604,95725.0,95724.0,1.25904515]
[1746093770003,0.63604,95725.0,95724.0,0.86974255]
[1746093770195,0.63604,95725.0,95724.0,1.07864515]
[1746093770905,0.636,95725.0,95724.0,1.07864515]
[1746093771208,0.63604,95725.0,95724.0,1.07864515]
[1746093771407,0.636,95725.0,95724.0,1.27724515]
[1746093771703,0.63604,95725.0,95724.0,1.27724515]
[1746093772912,0.636,95725.0,95724.0,1.27724515]
[1746093773113,0.63604,95725.0,95724.0,1.27724515]
[1746093782813,5.401e-05,95734.0,95733.0,0.208883]
[1746093783112,5.401e-05,95734.0,95733.0,1.599683]
[1746093783322,0.122,95734.0,95733.0,1.991383]
[1746093783716,0.12204,95734.0,95733.0,1.991383]
[1746093784314,0.13004,95734.0,95733.0,1.991383]
[1746093784720,0.0822418,95734.0,95733.0,1.991383]
[1746093784925,0.001,95736.0,95735.0,0.2088786]
[1746093785218,0.1808,95741.0,95735.0,0.2088786]
[1746093785219,0.0015,95745.0,95744.0,0.208859]
[1746093785417,0.1808,95750.0,95749.0,0.2088481]
[1746093785611,0.1808,95750.0,95749.0,1.2488481]
[1746093786116,0.18084,95750.0,95749.0,1.6465481]
[1746093786321,0.1808,95750.0,95749.0,1.6465481]
[1746093786512,0.18084,95750.0,95749.0,1.6465481]
[1746093786712,0.13299631,95757.0,95756.0,0.2088328]
[1746093786920,0.13299631,95757.0,95756.0,1.2488328]
[1746093787120,0.13303631,95757.0,95756.0,1.2488328]
[1746093787616,0.13303631,95757.0,95756.0,1.4407328]
[1746093788027,0.33143631,95757.0,95756.0,1.6399328]
[1746093788320,0.33143631,95757.0,95756.0,1.65332935]
[1746093788522,0.19844,95757.0,95756.0,1.65332935]
[1746093792125,5.401e-05,95768.0,95762.0,0.0522047]
[1746093792323,5.401e-05,95768.0,95765.0,0.2088132]
[1746093792528,5.401e-05,95768.0,95765.0,1.10680342]
[1746093792821,0.20886071,95768.0,95765.0,1.10680342]
[1746093793022,0.56966071,95768.0,95765.0,1.10680342]
[1746093793224,0.209811,95766.0,95765.0,0.89799022]
[1746093793423,0.629231,95766.0,95765.0,0.64799022]
[1746093794623,0.209811,95766.0,95765.0,0.64799022]
[1746093794826,0.209811,95766.0,95765.0,0.85680342]
[1746093795128,0.209851,95766.0,95765.0,0.98799022]
[1746093795522,0.209851,95766.0,95765.0,1.19680342]
[1746093795715,0.586551,95766.0,95765.0,0.98799022]
[1746093795918,0.586551,95766.0,95765.0,1.19680342]
[1746093796319,0.586551,95766.0,95765.0,0.98799022]
[1746093797125,0.586551,95766.0,95765.0,0.8153869]
[1746093797331,0.37774,95766.0,95765.0,1.0242001]
[1746093797523,0.586551,95766.0,95765.0,1.0242001]
[1746093797719,0.586551,95766.0,95765.0,0.8153869]
[1746093797920,0.586511,95766.0,95765.0,0.5553869]
[1746093798123,0.586551,95766.0,95765.0,0.5553869]
[1746093798323,0.690971,95766.0,95765.0,0.5553869]
[1746093799932,0.73216,95766.0,95735.0,0.0522192]
[1746093800234,0.73216,95766.0,95727.0,0.05379055]
[1746093800235,0.2088939,95728.0,95727.0,0.00156695]
[1746093800527,0.2088939,95728.0,95727.0,0.76156695]
[1746093800923,0.5834939,95728.0,95727.0,0.76156695]
[1746093802119,0.5834939,95728.0,95727.0,0.76922519]
[1746093802319,0.5834939,95728.0,95727.0,0.77222519]
[1746093802927,0.5834939,95728.0,95727.0,0.77622519]
[1746093803935,0.5834939,95728.0,95727.0,0.77422519]
[1746093804132,0.5834939,95728.0,95727.0,0.77922519]
[1746093804631,0.5834939,95728.0,95727.0,0.77422519]
[1746093804820,0.5834939,95728.0,95727.0,0.77922519]
[1746093808623,0.5835339,95728.0,95727.0,0.77922519]
[1746093809822,0.5835339,95728.0,95727.0,0.98812129]
[1746093810428,0.5834939,95728.0,95727.0,0.77922519]
[1746093810632,0.5835339,95728.0,95727.0,0.77922519]
[1746093811629,0.5835339,95728.0,95727.0,0.97732519]
[1746093813932,0.5835339,95728.0,95727.0,1.18622129]
[1746093814639,0.5835339,95728.0,95727.0,0.97732519]
[1746093816129,0.5835339,95728.0,95727.0,1.18622129]
[1746093816338,0.5834939,95728.0,95727.0,0.97732519]
[1746093816533,0.5835339,95728.0,95727.0,1.18622129]
[1746093818839,0.3608,95751.0,95727.0,0.97732519]
[1746093819037,0.2088644,95746.0,95745.0,0.2610583]
[1746093819336,0.3260804,95746.0,95745.0,1.3610583]
[1746093819836,0.2610804,95746.0,95745.0,1.1]
[1746093820037,0.3260804,95746.0,95745.0,1.1]
[1746093820343,0.3261204,95746.0,95745.0,0.81]
[1746093820525,0.3260804,95746.0,95745.0,0.81]
[1746093820731,0.3261204,95746.0,95745.0,0.81]
[1746093821639,0.3261204,95746.0,95745.0,0.811]
[1746093822534,0.99396441,95746.0,95745.0,0.811]
[1746093823142,0.208883,95733.0,95732.0,0.3799]
[1746093823338,0.569683,95733.0,95732.0,1.2999]
[1746093824247,0.569683,95733.0,95732.0,1.3039]
[1746093824433,0.769283,95733.0,95732.0,1.3039]
[1746093825041,0.769283,95733.0,95732.0,1.3079]
[1746093825739,0.769283,95733.0,95732.0,0.928]
[1746093826141,0.769283,95733.0,95732.0,0.76091955]
[1746093826437,0.965783,95733.0,95732.0,0.76091955]
[1746093826845,0.965783,95733.0,95732.0,0.75691955]
[1746093827039,0.965783,95733.0,95732.0,0.75991955]
[1746093827240,0.965783,95733.0,95732.0,0.75891955]
[1746093828745,0.965783,95733.0,95732.0,0.75591955]
[1746093828951,0.965783,95733.0,95732.0,0.75891955]
[1746093830331,1.147483,95733.0,95732.0,0.75891955]
[1746093831037,1.147483,95733.0,95732.0,0.75791955]
[1746093831437,1.147483,95733.0,95732.0,0.75691955]
[1746093831945,1.147483,95733.0,95732.0,0.75491955]
[1746093832147,1.147483,95733.0,95732.0,0.75691955]
[1746093834043,1.147483,95733.0,95732.0,0.75291955]
[1746093834247,1.147483,95733.0,95732.0,0.75691955]
[1746093835447,1.147483,95733.0,95732.0,0.75491955]
[1746093835750,1.147483,95733.0,95732.0,0.75691955]
[1746093837244,1.147483,95733.0,95732.0,0.75591955]
[1746093837644,0.2089419,95706.0,95695.0,0.4158]
[1746093837845,0.2739019,95706.0,95705.0,0.9573111]
[1746093839044,0.4636019,95706.0,95705.0,0.9603111]
[1746093839245,0.4636019,95706.0,95705.0,0.96809971]
[1746093839448,0.6450019,95706.0,95705.0,0.96809971]
[1746093839647,0.6450019,95706.0,95705.0,0.96909971]
[1746093840652,0.2739019,95706.0,95705.0,1.17804381]
[1746093840847,0.6347419,95706.0,95705.0,1.17904381]
[1746093841051,0.6347419,95706.0,95705.0,1.17704381]
[1746093841052,0.5697819,95706.0,95705.0,1.17704381]
[1746093841442,0.5697419,95706.0,95705.0,1.17604381]
[1746093841642,0.5697819,95706.0,95705.0,1.17704381]
[1746093842143,0.5697819,95706.0,95705.0,1.02077758]
[1746093842341,0.5697819,95706.0,95705.0,0.81083348]
[1746093842741,0.5697819,95706.0,95705.0,1.01977758]
[1746093842944,0.5697819,95706.0,95705.0,0.81083348]
[1746093843147,0.5697819,95706.0,95705.0,0.81483348]
[1746093843853,0.7675819,95706.0,95705.0,1.01977758]
[1746093844037,0.7675819,95706.0,95705.0,0.81483348]
[1746093844742,0.7675819,95706.0,95705.0,1.20093348]
[1746093845454,0.7675819,95706.0,95705.0,1.40987758]
[1746093845955,0.7675819,95706.0,95705.0,1.40887758]